bitfinex/quotes_SOLUSD_20240616
["timestamp","ask_amount","ask_price","bid_price","bid_amount"]
[1718566228026,2.4894,148.63,148.61,2.4897]
[1718566229056,2.4896,148.62,148.59,7.4699]
[1718566229224,2.4896,148.62,148.6,2.4898]
[1718566229722,27.7449,148.63,148.59,24.9001]
[1718566229940,2.4896,148.62,148.59,24.9001]
[1718566230245,2.4896,148.62,148.6,2.4898]
[1718566231848,27.7449,148.63,148.6,2.4898]
[1718566232150,2.4895,148.62,148.6,2.4898]
[1718566232338,30.2344,148.63,148.6,2.4898]
[1718566232746,2.4895,148.63,148.6,14.9392]
[1718566235136,2.4895,148.63,148.61,2.4897]
[1718566235960,2.4895,148.63,148.6,24.8987]
[1718566236153,2.4895,148.63,148.6,17.4291]
[1718566236452,7.4683,148.63,148.6,7.4695]
[1718566238230,2.4895,148.63,148.61,2.4897]
[1718566238533,7.8295,148.63,148.61,2.4897]
[1718566238745,7.8295,148.63,148.6,24.8988]
[1718566239260,12.8083,148.63,148.6,7.4695]
[1718566239854,7.8297,148.61,148.58,22.4114]
[1718566240036,7.8297,148.61,148.59,2.4899]
[1718566240037,5.34,148.61,148.59,2.4899]
[1718566240760,12.8089,148.62,148.59,7.47]
[1718566242167,5.34,148.6,148.54,6.1783709]
[1718566242472,5.34,148.6,148.57,7.4709]
[1718566242473,7.8299,148.6,148.57,7.4709]
[1718566242965,5.34,148.6,148.57,22.4133]
[1718566243140,5.34,148.6,148.58,2.4901]
[1718566243454,5.34,148.6,148.58,7.4705]
[1718566243662,5.34,148.6,148.58,14.9412]
[1718566244056,5.34,148.6,148.59,2.49]
[1718566244264,5.34,148.6,148.58,7.4705]
[1718566244484,5.34,148.6,148.59,2.49]
[1718566244768,5.34,148.61,148.59,2.49]
[1718566244948,5.34,148.61,148.59,7.4701]
[1718566245342,31.91503895,148.63,148.59,22.4103]
[1718566245544,12.36023895,148.63,148.6,12.4492]
[1718566245857,12.36023895,148.63,148.61,7.4689]
[1718566246235,12.36023895,148.63,148.61,2.4896]
[1718566246455,14.84963895,148.63,148.6,24.898]
[1718566246634,14.84963895,148.63,148.6,14.9388]
[1718566247343,19.82843895,148.63,148.6,7.4693]
[1718566248870,27.29663895,148.63,148.6,2.4897]
[1718566249052,2.4896,148.62,148.6,2.4897]
[1718566249370,2.4896,148.62,148.59,24.8995]
[1718566250256,2.4896,148.62,148.59,17.4297]
[1718566250964,7.4687,148.62,148.59,7.4698]
[1718566251469,12.8087,148.62,148.59,7.4698]
[1718566252565,7.8296,148.62,148.59,14.9399]
[1718566252773,2.4896,148.62,148.59,14.9399]
[1718566253665,7.4687,148.62,148.59,7.4698]
[1718566254375,14.9374,148.62,148.59,2.4899]
[1718566254778,20.2774,148.62,148.59,2.4899]
[1718566255249,2.4897,148.61,148.59,2.4899]
[1718566255452,2.4897,148.61,148.58,24.901]
[1718566255675,30.2358,148.62,148.59,2.49]
[1718566255972,5.34,148.61,148.59,2.49]
[1718566258274,5.34,148.61,148.59,7.4701]
[1718566259653,2.4899,148.6,148.58,2.4902]
[1718566260481,12.8093,148.61,148.58,7.4706]
[1718566260777,2.4899,148.6,148.58,2.4902]
[1718566261984,12.8093,148.61,148.58,7.4706]
[1718566262761,12.8093,148.61,148.58,12.451]
[1718566262762,7.8298,148.61,148.58,12.451]
[1718566262965,20.2785,148.61,148.58,2.49]
[1718566263876,12.8093,148.61,148.58,7.4704]
[1718566264777,7.8298,148.61,148.58,22.4117]
[1718566265385,5.34,148.61,148.59,2.49]
[1718566265887,2.49,148.59,148.56,14.9428]
[1718566266089,5.34,148.58,148.56,14.9428]
[1718566266297,5.34,148.58,148.56,14.943]
[1718566267070,5.34,148.58,148.56,2.4904]
[1718566267261,5.34,148.58,148.56,14.9432]
[1718566267456,5.34,148.58,148.57,2.4904]
[1718566269568,5.34,148.58,148.54,8.3107709]
[1718566269569,2.4904,148.57,148.54,8.3107709]
[1718566269771,5.34,148.57,148.54,5.8200709]
[1718566270014,4.9799,148.6,148.56,7.4714]
[1718566270183,7.8301,148.59,148.56,2.4904]
[1718566270702,2.49,148.6,148.56,12.4527]
[1718566270872,25.50494095,148.62,148.56,5.34]
[1718566271077,5.34,148.61,148.58,7.4704]
[1718566271382,5.34,148.61,148.57,2.4903]
[1718566271383,2.4899,148.6,148.57,2.4903]
[1718566271584,4.9796,148.61,148.57,2.4903]
[1718566271585,27.7479,148.61,148.57,7.471]
[1718566271885,2.4899,148.6,148.57,2.4903]
[1718566272405,5.34,148.61,148.59,2.49]
[1718566272693,7.01494095,148.62,148.59,7.47]
[1718566273195,7.01494095,148.62,148.59,14.9402]
[1718566273990,9.50444095,148.62,148.59,7.47]
[1718566274375,9.50444095,148.62,148.59,2.4899]
[1718566274791,27.29234095,148.62,148.58,7.4703]
[1718566275069,27.29244095,148.62,148.58,7.4703]
[1718566276493,2.49,148.59,148.54,0.8383709]
[1718566276699,12.8099,148.6,148.56,7.4715]
[1718566276883,12.8099,148.6,148.57,2.4904]
[1718566277083,7.83,148.6,148.56,12.4528]
[1718566277703,2.4901,148.59,148.55,12.4533]
[1718566278001,30.2393,148.6,148.55,7.472]
[1718566278194,27.7493,148.6,148.55,7.472]
[1718566278400,30.2393,148.6,148.55,7.472]
[1718566278580,12.8099,148.6,148.57,2.4903]
[1718566279984,7.83,148.6,148.57,2.4903]
[1718566280282,24.8981,148.61,148.57,7.471]
[1718566280601,12.8094,148.61,148.58,2.4902]
[1718566280980,12.8094,148.61,148.57,14.9421]
[1718566281590,20.2786,148.61,148.57,7.4709]
[1718566282401,2.4899,148.6,148.57,7.4709]
[1718566282589,2.4899,148.6,148.57,2.4902]
[1718566282789,2.4899,148.6,148.57,7.471]
[1718566282986,30.2375,148.61,148.57,7.471]
[1718566283402,2.4899,148.6,148.57,7.471]
[1718566284989,2.4899,148.6,148.57,2.4902]
[1718566285387,7.4697,148.6,148.57,2.4902]
[1718566285603,7.4697,148.6,148.56,14.9426]
[1718566285903,12.8097,148.6,148.56,14.9426]
[1718566286112,20.2794,148.6,148.56,14.9426]
[1718566286288,2.49,148.59,148.56,7.4713]
[1718566286890,2.4902,148.58,148.55,7.4718]
[1718566287396,2.4902,148.58,148.55,2.4906]
[1718566287600,2.4902,148.58,148.55,7.472]
[1718566287932,12.8103,148.59,148.55,14.9441]
[1718566288404,12.8103,148.59,148.55,12.4535]
[1718566288790,7.8302,148.59,148.55,12.4535]
[1718566290011,2.4902,148.59,148.55,12.4535]
[1718566290510,7.8302,148.59,148.55,12.4535]
[1718566290688,12.8103,148.59,148.55,12.4535]
[1718566291215,17.7903,148.59,148.55,4.9814]
[1718566291413,12.8102,148.59,148.55,12.4535]
[1718566291613,12.8102,148.59,148.55,14.9441]
[1718566291920,2.4902,148.58,148.55,7.472]
[1718566292217,5.34,148.58,148.55,14.9442]
[1718566292390,5.34,148.58,148.56,2.4905]
[1718566294512,5.34,148.58,148.55,12.4536]
[1718566294513,7.8303,148.58,148.55,7.472]
[1718566295090,5.34,148.58,148.55,7.472]
[1718566295587,5.34,148.58,148.55,14.9442]
[1718566295788,5.34,148.58,148.56,2.4905]
[1718566296312,7.8301,148.59,148.56,7.4716]
[1718566296615,19.81928458,148.6,148.56,14.9431]
[1718566296790,19.81928458,148.6,148.57,2.4904]
[1718566297212,27.28898458,148.6,148.56,14.9431]
[1718566297616,19.81928458,148.6,148.57,2.4903]
[1718566297913,14.47928458,148.6,148.57,2.4903]
[1718566298108,9.49938458,148.6,148.57,7.471]
[1718566298501,7.00938458,148.6,148.58,2.4902]
[1718566298702,7.00938458,148.6,148.57,14.9421]
[1718566299216,9.49928458,148.6,148.57,7.4709]
[1718566300494,9.49928458,148.6,148.57,2.4902]
[1718566301109,14.47908458,148.6,148.57,2.4902]
[1718566301308,7.00938458,148.6,148.58,2.4901]
[1718566301509,7.00938458,148.6,148.58,7.4705]
[1718566301719,7.00938458,148.6,148.58,2.4901]
[1718566302524,7.00938458,148.6,148.57,20.2816]
[1718566304598,9.49928458,148.6,148.57,7.4707]
[1718566307016,9.49928458,148.6,148.57,2.4902]
[1718566307017,14.47908458,148.6,148.57,2.4902]
[1718566307319,14.47908458,148.6,148.56,20.2826]
[1718566308117,14.47908458,148.6,148.56,17.7922]
[1718566308297,9.49928458,148.6,148.56,17.7922]
[1718566308726,14.47908458,148.6,148.56,17.7922]
[1718566309102,9.49928458,148.6,148.56,17.7922]
[1718566309303,9.49928458,148.6,148.57,4.9807]
[1718566309506,9.49928458,148.6,148.57,7.471]
[1718566310006,2.4901,148.59,148.56,7.4714]
[1718566310425,2.4901,148.59,148.56,2.4905]
[1718566310607,2.4901,148.59,148.56,7.4716]
[1718566310915,2.49,148.59,148.56,7.4716]
[1718566311235,31.90888458,148.6,148.57,2.4904]
[1718566311898,31.90888458,148.6,148.56,14.9431]
[1718566312103,2.49,148.59,148.56,7.4715]
[1718566313332,37.24888458,148.6,148.56,14.9431]
[1718566313708,37.24888458,148.6,148.57,2.4904]
[1718566314030,19.81918458,148.6,148.57,2.4904]
[1718566314916,19.81918458,148.6,148.56,2.4904]
[1718566314917,7.4702,148.59,148.56,2.4904]
[1718566315131,2.4903,148.58,148.55,7.472]
[1718566315324,7.8303,148.58,148.55,7.472]
[1718566315633,2.4903,148.58,148.55,7.472]
[1718566317733,7.8303,148.58,148.55,7.472]
[1718566318427,12.8113,148.57,148.54,0.8383709]
[1718566318636,5.34,148.56,148.54,0.8383709]
[1718566319304,7.4713,148.57,148.54,0.8383709]
[1718566319500,2.4904,148.57,148.54,0.8383709]
[1718566320424,24.9029,148.58,148.54,8.3109709]
[1718566320625,24.9029,148.58,148.54,15.7832709]
[1718566321232,24.9029,148.58,148.54,0.8383709]
[1718566321233,7.4713,148.57,148.54,0.8383709]
[1718566321439,14.9427,148.57,148.54,0.8383709]
[1718566321921,21.95272066,148.57,148.54,0.8383709]
[1718566322237,14.48142066,148.57,148.54,0.8383709]
[1718566323320,9.50052066,148.57,148.54,0.8383709]
[1718566323526,14.48132066,148.57,148.54,0.8383709]
[1718566324127,9.50052066,148.57,148.54,0.8383709]
[1718566324327,14.48132066,148.57,148.54,0.8383709]
[1718566325338,2.4906,148.56,148.54,0.8383709]
[1718566325717,5.34,148.55,148.54,0.8383709]
[1718566327969,24.9072,148.55,148.54,0.8383709]
[1718566328109,30.2472,148.55,148.54,0.8383709]
[1718566329010,24.9072,148.55,148.54,0.8383709]
[1718566329248,30.4172,148.55,148.54,0.8383709]
[1718566329434,30.7572,148.55,148.54,0.8383709]
[1718566329640,30.5872,148.55,148.54,0.8383709]
[1718566329838,30.2472,148.55,148.54,0.8383709]
[1718566330739,30.4172,148.55,148.54,0.8383709]
[1718566331042,30.7572,148.55,148.54,0.8383709]
[1718566331918,130.7572,148.55,148.54,0.8383709]
[1718566332129,137.76728734,148.55,148.54,0.8383709]
[1718566339345,137.76728734,148.55,148.45,21.3425]
[1718566339346,2.4917,148.49,148.45,28.8194]
[1718566339521,5.34,148.49,148.47,2.492]
[1718566339725,7.8317,148.49,148.46,7.4764]
[1718566340031,7.8319,148.48,148.45,7.4769]
[1718566340223,9.9681,148.48,148.44,2.4925]
[1718566340430,5.34,148.46,148.44,7.4776]
[1718566340625,5.34,148.46,148.41,21.3425]
[1718566340626,22.7859,148.46,148.42,2.4928]
[1718566340838,12.8173,148.45,148.41,26.3284]
[1718566341144,7.8325,148.45,148.42,2.4928]
[1718566341348,7.8325,148.45,148.42,7.4786]
[1718566341548,5.34,148.45,148.42,14.9573]
[1718566341724,5.34,148.44,148.42,2.4928]
[1718566341924,5.34,148.44,148.42,7.4786]
[1718566342143,5.34,148.44,148.42,12.4644]
[1718566342327,7.01414908,148.45,148.41,2.493]
[1718566342527,7.01414908,148.45,148.44,17.4479]
[1718566342744,2.492,148.48,148.44,17.4479]
[1718566342745,7.4758,148.48,148.44,14.9553]
[1718566343042,7.832,148.47,148.44,2.4924]
[1718566343349,12.8161,148.47,148.44,2.4925]
[1718566343847,2.4919,148.48,148.45,2.4923]
[1718566344144,12.8158,148.48,148.44,4.985]
[1718566344351,7.8319,148.48,148.44,22.4329]
[1718566344746,7.8319,148.48,148.45,2.4923]
[1718566344926,19.46736365,148.5,148.46,4.9844]
[1718566345129,2.4913,148.52,148.49,2.4917]
[1718566345333,2.4913,148.52,148.49,7.4751]
[1718566346151,7.4738,148.52,148.49,2.4917]
[1718566348339,22.4217,148.52,148.48,7.4754]
[1718566348654,24.913,148.52,148.48,14.9511]
[1718566348839,24.913,148.52,148.49,2.4917]
[1718566349038,2.4914,148.51,148.48,14.951]
[1718566349349,2.4914,148.51,148.48,7.4753]
[1718566349553,2.4915,148.5,148.47,7.4758]
[1718566350236,2.4915,148.5,148.47,14.952]
[1718566350444,2.4915,148.5,148.47,7.4758]
[1718566354057,7.01084108,148.54,148.45,20.0558]
[1718566354058,12.8154,148.49,148.45,20.0558]
[1718566354238,2.4919,148.48,148.45,22.5481]
[1718566354838,2.4919,148.48,148.45,30.0253]
[1718566355154,12.8155,148.49,148.46,2.4922]
[1718566355738,7.4755,148.49,148.46,2.4922]
[1718566355961,2.4919,148.48,148.45,7.4769]
[1718566356137,2.4919,148.48,148.45,14.9541]
[1718566356332,7.4755,148.49,148.45,12.4619]
[1718566356556,2.4919,148.48,148.45,14.9541]
[1718566357058,2.4919,148.48,148.45,7.4769]
[1718566357238,2.4919,148.48,148.45,14.9541]
[1718566357562,2.4921,148.47,148.44,7.4774]
[1718566357758,2.4919,148.48,148.44,12.4624]
[1718566357943,2.4919,148.48,148.46,2.4922]
[1718566358259,24.918,148.49,148.46,2.4922]
[1718566358440,14.9508,148.49,148.46,2.4922]
[1718566358637,7.4753,148.49,148.46,2.4922]
[1718566358844,2.4916,148.5,148.47,7.476]
[1718566359755,2.4916,148.5,148.47,14.9522]
[1718566360050,24.9148,148.51,148.47,12.4603]
[1718566360257,7.01603463,148.53,148.43,0.34]
[1718566360438,24.915,148.51,148.45,0.17]
[1718566360638,30.255,148.51,148.48,2.4918]
[1718566360847,7.4743,148.51,148.48,2.4918]
[1718566361069,12.8143,148.51,148.48,7.4755]
[1718566361448,7.4743,148.51,148.48,7.4755]
[1718566361772,12.8143,148.51,148.48,7.4755]
[1718566362280,2.4913,148.52,148.49,7.475]
[1718566362566,34.77583463,148.53,148.49,4.9833]
[1718566362735,2.4912,148.52,148.49,7.4749]
[1718566362940,7.4737,148.52,148.49,7.4749]
[1718566363153,7.4737,148.52,148.49,2.4916]
[1718566363358,2.4914,148.51,148.49,2.4916]
[1718566363759,100.0,148.6,148.49,5.34]
[1718566363976,7.4727,148.54,148.51,7.474]
[1718566364173,14.9454,148.54,148.51,7.474]
[1718566364376,7.4732,148.53,148.5,7.4743]
[1718566364570,7.4732,148.53,148.5,7.4745]
[1718566366168,2.4912,148.52,148.5,2.4914]
[1718566366798,7.4733,148.53,148.5,14.9492]
[1718566367281,27.7588,148.54,148.5,12.4578]
[1718566367459,2.4911,148.53,148.5,12.4578]
[1718566367664,2.4911,148.53,148.5,14.9492]
[1718566369292,2.4911,148.53,148.51,2.4914]
[1718566369582,7.4732,148.53,148.5,7.4745]
[1718566370187,12.4554,148.53,148.5,2.4914]
[1718566370390,14.9466,148.53,148.5,2.4914]
[1718566370770,7.4733,148.53,148.5,7.4745]
[1718566371565,2.4912,148.53,148.5,14.9492]
[1718566371888,27.7589,148.54,148.5,12.4578]
[1718566372093,2.4911,148.53,148.5,12.4578]
[1718566374387,27.7589,148.54,148.5,12.4578]
[1718566374591,2.491,148.53,148.5,12.4578]
[1718566375284,2.4913,148.52,148.49,12.4581]
[1718566375475,7.8313,148.52,148.49,12.4581]
[1718566375894,5.34,148.52,148.49,7.4749]
[1718566376396,7.8312,148.52,148.49,12.4581]
[1718566376600,5.34,148.52,148.49,12.4581]
[1718566376777,12.8134,148.53,148.5,14.9491]
[1718566379997,7.8312,148.53,148.51,2.4914]
[1718566380194,7.01087566,148.55,148.52,2.4912]
[1718566380195,29.42787566,148.55,148.52,2.4912]
[1718566380396,7.01087566,148.55,148.54,4.9818]
[1718566380697,38.2899,148.57,148.54,2.4908]
[1718566380872,46.1204,148.57,148.54,7.4726]
[1718566381072,38.2899,148.57,148.54,2.4908]
[1718566381272,15.8757,148.57,148.56,2.4905]
[1718566381501,15.8757,148.57,148.55,14.9438]
[1718566381679,23.7061,148.57,148.55,2.4906]
[1718566382698,23.7061,148.57,148.54,14.9447]
[1718566382902,36.1582,148.57,148.54,7.4723]
[1718566383405,28.687,148.57,148.54,14.945]
[1718566383710,24.903,148.58,148.55,2.4907]
[1718566383905,27.7527,148.58,148.55,7.4721]
[1718566384076,20.2818,148.58,148.55,7.4721]
[1718566384386,20.2818,148.58,148.55,2.4907]
[1718566384588,27.7512,148.59,148.56,2.4905]
[1718566384901,24.9014,148.59,148.56,2.4905]
[1718566385702,2.4902,148.58,148.56,2.4905]
[1718566386310,24.9014,148.59,148.56,2.4905]
[1718566386478,2.4902,148.58,148.56,2.4905]
[1718566387408,7.4707,148.58,148.55,7.4718]
[1718566387716,14.9414,148.58,148.55,2.4906]
[1718566388085,2.4904,148.57,148.55,2.4906]
[1718566388892,2.4905,148.57,148.54,7.4725]
[1718566389328,2.4905,148.57,148.54,14.9452]
[1718566390181,22.4113,148.59,148.52,5.34]
[1718566390381,2.4902,148.58,148.56,2.4904]
[1718566390611,22.4096,148.6,148.56,4.9808]
[1718566390804,12.8102,148.59,148.56,7.4712]
[1718566391005,7.8301,148.59,148.57,2.4904]
[1718566391212,12.8102,148.59,148.56,7.4712]
[1718566391419,2.4902,148.58,148.56,2.4904]
[1718566392608,2.4902,148.58,148.55,14.9436]
[1718566393892,7.4702,148.59,148.56,4.981]
[1718566394111,12.8102,148.59,148.56,7.4714]
[1718566394321,7.8301,148.59,148.56,12.4526]
[1718566394521,7.8301,148.59,148.56,14.943]
[1718566395022,12.8103,148.59,148.56,7.4714]
[1718566395418,5.34,148.59,148.57,4.9808]
[1718566395720,7.4699,148.6,148.57,2.4903]
[1718566395897,7.4699,148.6,148.57,7.471]
[1718566396520,46.12337685,148.61,148.58,2.4901]
[1718566396521,14.46987685,148.61,148.58,2.4901]
[1718566396700,2.4899,148.6,148.58,2.4901]
[1718566397217,31.89817685,148.61,148.58,2.4901]
[1718566397617,31.89817685,148.61,148.58,7.4705]
[1718566398208,14.46997685,148.61,148.58,7.4705]
[1718566398901,21.93917685,148.61,148.58,7.4705]
[1718566399096,7.00067685,148.61,148.6,7.4697]
[1718566399418,23.8214,148.65,148.62,7.4686]
[1718566399622,7.4673,148.65,148.62,7.4686]
[1718566400199,2.4891,148.65,148.62,22.406]
[1718566400528,2.489,148.65,148.63,7.4679]
[1718566400731,2.489,148.65,148.63,2.4892]
[1718566401097,24.8898,148.66,148.63,2.4893]
[1718566401425,2.489,148.65,148.63,7.4681]
[1718566401723,24.8898,148.66,148.63,7.468]
[1718566402313,7.01389623,148.67,148.65,2.489]
[1718566402513,2.4887,148.67,148.65,7.4671]
[1718566402708,2.4887,148.67,148.65,2.489]
[1718566403119,16.3541,148.69,148.67,2.4886]
[1718566403319,18.8425,148.69,148.66,4.9775]
[1718566403501,29.1593,148.69,148.66,14.9328]
[1718566404013,2.4885,148.68,148.66,2.4887]
[1718566404214,2.4887,148.67,148.64,4.9783]
[1718566404415,2.4887,148.67,148.65,2.489]
[1718566405707,30.226,148.68,148.65,7.4671]
[1718566406228,12.8057,148.68,148.66,2.4888]
[1718566406530,7.8286,148.68,148.66,2.4888]
[1718566406839,7.8286,148.68,148.65,24.8901]
[1718566407131,7.8286,148.68,148.66,2.4888]
[1718566407300,5.34,148.68,148.66,2.4888]
[1718566407508,5.34,148.68,148.66,7.4665]
[1718566407820,31.2848,148.69,148.66,7.4665]
[1718566408026,5.34,148.68,148.66,7.4665]
[1718566408540,18.8426,148.69,148.67,2.4887]
[1718566408743,5.34,148.68,148.67,2.4887]
[1718566410117,24.8875,148.67,148.64,2.4891]
[1718566410317,7.4663,148.67,148.64,7.4675]
[1718566410516,2.4886,148.68,148.65,7.467]
[1718566410723,18.8425,148.69,148.66,14.9334]
[1718566410952,5.34,148.67,148.66,7.4667]
[1718566411136,5.34,148.68,148.66,2.4889]
[1718566411336,5.34,148.68,148.66,7.4666]
[1718566411637,5.34,148.68,148.66,14.9332]
[1718566411862,5.34,148.68,148.66,2.4889]
[1718566412234,7.8285,148.68,148.65,24.8899]
[1718566412852,7.8285,148.68,148.65,7.4668]
[1718566413227,2.4885,148.68,148.65,7.4668]
[1718566413426,7.8285,148.68,148.65,7.4668]
[1718566413643,12.8056,148.68,148.65,7.4668]
[1718566413849,12.8056,148.68,148.65,2.4889]
[1718566414157,17.7828,148.68,148.65,2.4889]
[1718566414450,12.8057,148.68,148.65,2.4889]
[1718566415130,2.4887,148.67,148.64,24.8911]
[1718566415853,2.4887,148.67,148.64,7.4672]
[1718566416049,7.4661,148.67,148.64,7.4672]
[1718566416423,2.4887,148.67,148.64,7.4672]
[1718566416621,30.226,148.68,148.64,12.4457]
[1718566416824,24.886,148.68,148.65,2.489]
[1718566417026,2.4887,148.68,148.65,4.978]
[1718566417226,2.4887,148.68,148.65,7.4669]
[1718566417665,14.9323,148.67,148.64,2.489]
[1718566417835,7.4661,148.67,148.64,2.489]
[1718566418033,5.34,148.65,148.6,4.9794]
[1718566418356,2.4892,148.64,148.61,14.938]
[1718566418543,2.4892,148.64,148.61,17.4278]
[1718566418860,2.4892,148.64,148.62,2.4895]
[1718566419169,30.2314,148.65,148.62,2.4895]
[1718566419666,12.8074,148.65,148.62,7.4686]
[1718566419870,7.8292,148.65,148.62,7.4686]
[1718566420576,7.467,148.66,148.62,12.4476]
[1718566420727,7.467,148.66,148.63,7.4681]
[1718566420728,5.34,148.65,148.63,7.4681]
[1718566420929,5.34,148.65,148.63,2.4893]
[1718566421528,12.8078,148.64,148.6,4.9796]
[1718566421724,12.8078,148.64,148.61,2.4897]
[1718566421943,15.297,148.64,148.61,2.4897]
[1718566422148,20.2755,148.64,148.61,2.4897]
[1718566422336,20.2755,148.64,148.6,24.8983]
[1718566422533,17.7862,148.64,148.6,24.8983]
[1718566422739,12.8078,148.64,148.61,2.4897]
[1718566423331,7.8293,148.64,148.61,2.4897]
[1718566424058,7.8293,148.64,148.61,7.4691]
[1718566424631,7.8294,148.63,148.6,2.4898]
[1718566424831,12.8082,148.63,148.6,2.4898]
[1718566425053,5.34,148.63,148.6,14.9391]
[1718566425358,5.34,148.63,148.61,7.469]
[1718566425659,12.8077,148.64,148.61,2.4896]
[1718566425851,7.8293,148.64,148.61,2.4896]
[1718566426053,2.4894,148.63,148.6,7.4695]
[1718566427257,2.4894,148.63,148.6,2.4897]
[1718566427963,7.4682,148.63,148.6,2.4897]
[1718566429161,2.4894,148.63,148.6,2.4897]
[1718566430057,2.4894,148.63,148.6,2.4898]
[1718566430358,5.34,148.62,148.59,2.49]
[1718566430780,7.8295,148.62,148.59,2.49]
[1718566430972,7.8295,148.62,148.59,7.4701]
[1718566431274,5.34,148.62,148.59,7.4701]
[1718566431478,5.34,148.62,148.59,14.9402]
[1718566431777,5.34,148.62,148.59,22.4104]
[1718566431981,5.34,148.62,148.6,2.4898]
[1718566432349,7.8295,148.62,148.59,7.4701]
[1718566433264,5.34,148.62,148.59,7.4701]
[1718566433581,5.34,148.62,148.59,14.9401]
[1718566433749,7.8295,148.62,148.59,7.47]
[1718566434261,5.34,148.62,148.6,2.4899]
[1718566434872,5.34,148.62,148.59,24.9003]
[1718566435072,5.34,148.62,148.6,2.4898]
[1718566436876,16.2236,148.61,148.56,5.34]
[1718566437057,5.34,148.58,148.55,7.4718]
[1718566437252,5.34,148.58,148.55,2.4905]
[1718566437774,12.8107,148.58,148.54,24.9077]
[1718566438074,5.34,148.57,148.54,22.417]
[1718566438293,5.34,148.57,148.51,5.34]
[1718566438294,4.9814,148.55,148.51,5.34]
[1718566438489,5.34,148.53,148.47,5.34]
[1718566438692,5.34,148.53,148.44,6.4961]
[1718566438693,5.34,148.53,148.51,2.4913]
[1718566439381,5.34,148.53,148.51,7.474]
[1718566439581,5.34,148.53,148.51,2.4913]
[1718566439885,5.34,148.53,148.51,2.4914]
[1718566440096,5.34,148.53,148.51,7.4741]
[1718566440285,7.8311,148.53,148.5,2.4915]
[1718566440469,5.34,148.53,148.5,2.4915]
[1718566441202,7.831,148.53,148.5,2.4915]
[1718566441993,7.831,148.53,148.49,24.9167]
[1718566442490,20.2877,148.52,148.48,2.4917]
[1718566442694,5.34,148.51,148.48,7.4755]
[1718566443226,5.34,148.5,148.47,7.4759]
[1718566444089,5.34,148.5,148.48,2.4919]
[1718566444414,5.34,148.5,148.48,7.4757]
[1718566444602,5.34,148.5,148.48,2.4919]
[1718566444971,5.34,148.5,148.48,7.4757]
[1718566445269,5.34,148.51,148.48,2.4919]
[1718566446112,5.34,148.51,148.47,24.9203]
[1718566446113,7.8314,148.51,148.47,24.9203]
[1718566446714,7.4742,148.51,148.47,7.4758]
[1718566447022,5.34,148.5,148.47,7.4758]
[1718566447323,5.34,148.5,148.47,14.9519]
[1718566447680,5.34,148.5,148.47,2.4919]
[1718566448610,7.8316,148.5,148.47,2.4919]
[1718566448800,5.34,148.5,148.47,7.476]
[1718566449114,30.2542,148.51,148.47,7.476]
[1718566450123,7.8315,148.51,148.47,4.9841]
[1718566450325,7.4744,148.51,148.47,14.9522]
[1718566451031,7.4744,148.51,148.47,7.476]
[1718566451403,2.4915,148.51,148.48,2.4919]
[1718566452005,2.4915,148.51,148.47,24.9203]
[1718566452305,7.4743,148.51,148.47,7.476]
[1718566452714,7.4743,148.51,148.47,14.9522]
[1718566452910,2.4915,148.51,148.48,2.4919]